bitfinex/quotes_BTCUSD_20250726
["timestamp","ask_amount","ask_price","bid_price","bid_amount"]
[1753508280227,0.20431287,117650.0,117640.0,0.51740053]
[1753508280443,0.19581323,117650.0,117640.0,0.53440118]
[1753508281088,0.19581323,117650.0,117640.0,0.24192116]
[1753508281307,0.19581323,117650.0,117640.0,0.52590089]
[1753508281525,0.19581323,117650.0,117640.0,0.53440118]
[1753508281736,0.19581323,117650.0,117640.0,0.5429014]
[1753508281939,0.19581323,117650.0,117640.0,0.53440118]
[1753508282649,0.19581323,117650.0,117640.0,0.55859118]
[1753508283340,0.19581323,117650.0,117640.0,0.5670914]
[1753508283554,0.19581323,117650.0,117640.0,0.55009067]
[1753508283997,0.19581323,117650.0,117640.0,0.26611094]
[1753508284152,0.19581323,117650.0,117640.0,0.55859089]
[1753508284362,0.19581323,117650.0,117640.0,0.55009067]
[1753508284585,0.37737876,117650.0,117640.0,0.21436986]
[1753508284788,0.38527948,117650.0,117640.0,0.49834959]
[1753508285645,0.38527948,117650.0,117640.0,0.21436986]
[1753508286092,0.21528373,117650.0,117640.0,0.2313708]
[1753508286314,0.21528366,117650.0,117640.0,0.52385089]
[1753508286774,0.20678395,117650.0,117640.0,0.53450118]
[1753508287004,0.19888366,117650.0,117640.0,0.52600089]
[1753508287247,0.19888359,117650.0,117640.0,0.52600089]
[1753508288186,0.19888359,117650.0,117640.0,0.53450118]
[1753508288665,0.19888359,117650.0,117640.0,0.52600089]
[1753508288877,0.19038358,117650.0,117640.0,0.53450118]
[1753508289148,0.19888315,117650.0,117640.0,0.53450118]
[1753508289381,0.19888315,117650.0,117640.0,0.52600089]
[1753508289613,0.19888315,117650.0,117640.0,0.53450118]
[1753508290061,0.19038351,117650.0,117640.0,0.54300125]
[1753508290261,0.19038351,117650.0,117640.0,0.54300132]
[1753508290409,0.19888293,117650.0,117640.0,0.54300132]
[1753508290633,0.19888293,117650.0,117640.0,0.53450118]
[1753508290837,0.19888293,117650.0,117640.0,0.5430014]
[1753508291018,0.2073825,117650.0,117640.0,0.53450089]
[1753508291234,0.2073825,117650.0,117640.0,0.51750038]
[1753508291588,0.21588221,117650.0,117640.0,0.51750038]
[1753508291802,0.21588214,117650.0,117640.0,0.50900002]
[1753508292014,0.21588214,117650.0,117640.0,0.52600067]
[1753508293026,0.2073825,117650.0,117640.0,0.52600067]
[1753508293246,0.19888293,117650.0,117640.0,0.54300103]
[1753508293460,0.18278293,117650.0,117640.0,0.54300103]
[1753508293670,0.1882125,117650.0,117640.0,0.55869089]
[1753508294089,0.17971293,117650.0,117640.0,0.55869089]
[1753508294315,0.17971293,117650.0,117640.0,0.56719103]
[1753508294665,0.18821242,117650.0,117640.0,0.55869089]
[1753508294884,0.18821242,117650.0,117640.0,0.55019067]
[1753508295098,0.18821242,117650.0,117640.0,0.55869089]
[1753508296141,0.18821242,117650.0,117640.0,0.56719103]
[1753508296354,0.17971293,117650.0,117640.0,0.55019046]
[1753508296570,0.17971293,117650.0,117640.0,0.5586906]
[1753508296781,0.18821242,117650.0,117640.0,0.54169024]
[1753508297417,0.18821242,117650.0,117640.0,0.25771051]
[1753508297633,0.19671199,117650.0,117640.0,0.54169024]
[1753508298023,0.21201199,117650.0,117640.0,0.53318995]
[1753508298227,0.21201199,117650.0,117640.0,0.54169024]
[1753508298765,0.20351242,117650.0,117640.0,0.55019046]
[1753508300856,0.19501293,117650.0,117640.0,0.5586906]
[1753508301111,0.19501293,117650.0,117640.0,0.55019046]
[1753508301430,0.2035125,117650.0,117640.0,0.55019046]
[1753508302580,0.20351242,117650.0,117640.0,0.55019046]
[1753508303041,0.20351242,117650.0,117640.0,0.26621073]
[1753508303547,0.20351242,117650.0,117640.0,0.55019046]
[1753508304781,0.20351242,117650.0,117640.0,0.26621073]
[1753508304986,0.20351242,117650.0,117640.0,0.25771051]
[1753508305145,0.20351242,117650.0,117640.0,0.26621073]
[1753508305547,0.20351242,117650.0,117640.0,0.25771051]
[1753508306715,0.20351242,117650.0,117640.0,0.26621065]
[1753508307136,0.19501293,117650.0,117640.0,0.26621073]
[1753508307372,0.20351242,117650.0,117640.0,0.27471087]
[1753508307604,0.19501293,117650.0,117640.0,0.27471087]
[1753508307798,0.19501293,117650.0,117640.0,0.28321094]
[1753508308179,0.04949293,117650.0,117640.0,0.27471087]
[1753508308382,0.17769293,117650.0,117640.0,0.26621073]
[1753508308554,0.17968293,117650.0,117640.0,0.26621073]
[1753508308967,0.19498293,117650.0,117640.0,0.27471087]
[1753508309165,0.19498293,117650.0,117640.0,0.26621073]
[1753508309390,0.2034825,117650.0,117640.0,0.25771051]
[1753508309600,0.2034825,117650.0,117640.0,0.54169024]
[1753508309804,0.2034825,117650.0,117640.0,0.55019046]
[1753508310019,0.19498293,117650.0,117640.0,0.55019046]
[1753508310229,0.19498293,117650.0,117640.0,0.5586906]
[1753508311052,0.19498293,117650.0,117640.0,0.26621073]
[1753508311484,0.19498293,117650.0,117640.0,0.27471087]
[1753508311697,0.19498293,117650.0,117640.0,0.26621073]
[1753508312158,0.18648351,117650.0,117640.0,0.2747108]
[1753508312603,0.18648351,117650.0,117640.0,0.27471087]
[1753508312761,0.194983,117650.0,117640.0,0.26621073]
[1753508312983,0.20348264,117650.0,117640.0,0.25771051]
[1753508313237,0.194983,117650.0,117640.0,0.26621073]
[1753508313654,0.194983,117650.0,117640.0,0.25771051]
[1753508314072,0.194983,117650.0,117640.0,0.26621073]
[1753508314274,0.18648351,117650.0,117640.0,0.26621073]
[1753508314509,0.194983,117650.0,117640.0,0.27471087]
[1753508314949,0.194983,117650.0,117640.0,0.26621073]
[1753508315175,0.194983,117650.0,117640.0,0.27471087]
[1753508315392,0.18648351,117650.0,117640.0,0.27471087]
[1753508315837,0.19498293,117650.0,117640.0,0.27471087]
[1753508316048,0.2034825,117650.0,117640.0,0.26621073]
[1753508316471,0.19498293,117650.0,117640.0,0.26621073]
[1753508316893,0.19498293,117650.0,117640.0,0.27471087]
[1753508317639,0.19498293,117650.0,117640.0,0.26621073]
[1753508317857,0.2034825,117650.0,117640.0,0.26621073]
[1753508318287,0.20348242,117650.0,117640.0,0.26621073]
[1753508318706,0.20348242,117650.0,117640.0,0.27465006]
[1753508319148,0.20348242,117650.0,117640.0,0.2831502]
[1753508319361,0.19498293,117650.0,117640.0,0.29165027]
[1753508319580,0.19498293,117650.0,117640.0,0.2831502]
[1753508320211,0.19498293,117650.0,117640.0,0.27465006]
[1753508320460,0.19498293,117650.0,117640.0,0.2831502]
[1753508321288,0.19498293,117650.0,117640.0,0.29165027]
[1753508321522,0.19498293,117650.0,117640.0,0.2831502]
[1753508321721,0.18648351,117650.0,117640.0,0.2831502]
[1753508322157,0.194983,117650.0,117640.0,0.2831502]
[1753508322371,0.18648351,117650.0,117640.0,0.2831502]
[1753508322569,0.194983,117650.0,117640.0,0.2831502]
[1753508322833,0.19498293,117650.0,117640.0,0.25046006]
[1753508323057,0.20348242,117650.0,117640.0,0.25046006]
[1753508323723,0.19498293,117650.0,117640.0,0.2589602]
[1753508324367,0.19498293,117650.0,117640.0,0.25046006]
[1753508324583,0.19498293,117650.0,117640.0,0.25052087]
[1753508324784,0.19498293,117650.0,117640.0,0.24202073]
[1753508324969,0.19498293,117650.0,117640.0,0.25052087]
[1753508325172,0.19498293,117650.0,117640.0,0.24202073]
[1753508325351,0.19498293,117650.0,117640.0,0.25052087]
[1753508325748,0.18648351,117650.0,117640.0,0.25902094]
[1753508326357,0.194983,117650.0,117640.0,0.25052087]
[1753508326565,0.18648351,117650.0,117640.0,0.25902094]
[1753508326843,0.19498293,117650.0,117640.0,0.25052087]
[1753508327258,0.19498293,117650.0,117640.0,0.25902094]
[1753508327469,0.19498293,117650.0,117640.0,0.24202073]
[1753508327666,0.2034825,117650.0,117640.0,0.24202073]
[1753508328102,0.19498293,117650.0,117640.0,0.25047702]
[1753508328341,0.19498293,117650.0,117640.0,0.24202073]
[1753508328900,0.19498293,117650.0,117640.0,0.23352051]
[1753508329123,0.20348257,117650.0,117640.0,0.23352051]
[1753508329357,0.2034825,117650.0,117640.0,0.23352051]
[1753508329589,0.2064425,117650.0,117640.0,0.23352051]
[1753508329807,0.2064425,117650.0,117640.0,0.2422136]
[1753508330072,0.2064425,117650.0,117640.0,0.19785394]
[1753508330284,0.2064425,117650.0,117640.0,0.18916085]
[1753508330443,0.21494214,117650.0,117640.0,0.18066056]
[1753508330855,0.2064425,117650.0,117640.0,0.18066056]
[1753508331072,0.2064425,117650.0,117640.0,0.18916085]
[1753508331506,0.2064425,117650.0,117640.0,0.19766107]
[1753508331720,0.21494221,117650.0,117640.0,0.18066056]
[1753508331914,0.21494221,117650.0,117640.0,0.18916107]
[1753508331915,0.2064425,117650.0,117640.0,0.18916107]
[1753508332381,0.2064425,117650.0,117640.0,0.19766136]
[1753508332610,0.2064425,117650.0,117640.0,0.18916107]
[1753508333121,0.17244496,117650.0,117640.0,0.19766136]
[1753508333354,0.18944373,117650.0,117640.0,0.1721602]
[1753508333590,0.19794337,117650.0,117640.0,0.18066063]
[1753508333822,0.20644308,117650.0,117640.0,0.18066063]
[1753508334057,0.18944359,117650.0,117640.0,0.1721602]
[1753508334302,0.19794308,117650.0,117640.0,0.18066063]
[1753508334533,0.20644272,117650.0,117640.0,0.18916099]
[1753508334712,0.19794308,117650.0,117640.0,0.27141866]
[1753508335039,0.19794308,117650.0,117640.0,0.18916099]
[1753508335673,0.19794308,117650.0,117640.0,0.19766128]
[1753508335938,0.20644265,117650.0,117640.0,0.18916099]
[1753508336166,0.21494229,117650.0,117640.0,0.18066063]
[1753508336393,0.19794308,117650.0,117640.0,0.18916099]
[1753508336615,0.19794308,117650.0,117640.0,0.19766128]
[1753508336846,0.20644272,117650.0,117640.0,0.18916099]
[1753508337323,0.20644272,117650.0,117640.0,0.18066063]
[1753508337551,0.20644272,117650.0,117640.0,0.18916107]
[1753508338687,0.19794308,117650.0,117640.0,0.19766136]
[1753508338901,0.19794308,117650.0,117640.0,0.18916107]
[1753508339153,0.20644265,117650.0,117640.0,0.19766136]
[1753508339382,0.20644265,117650.0,117640.0,0.189161]
[1753508339647,0.20644265,117650.0,117640.0,0.1976615]
[1753508339833,0.21494236,117650.0,117640.0,0.18916114]
[1753508340091,0.20644265,117650.0,117640.0,0.1976615]
[1753508341007,0.21494236,117650.0,117640.0,0.18916114]
[1753508341438,0.20644265,117650.0,117640.0,0.18916114]
[1753508341624,0.21494236,117650.0,117640.0,0.18916114]
[1753508341844,0.21494229,117650.0,117640.0,0.18916114]
[1753508342700,0.19794308,117650.0,117640.0,0.18916114]
[1753508342927,0.20644272,117650.0,117640.0,0.1976615]
[1753508343146,0.20644265,117650.0,117640.0,0.1976615]
[1753508343358,0.20644265,117650.0,117640.0,0.18066071]
[1753508343571,0.21494236,117650.0,117640.0,0.18916114]
[1753508343786,0.19794308,117650.0,117640.0,0.1976615]
[1753508344008,0.19794308,117650.0,117640.0,0.20616179]
[1753508344462,0.19794308,117650.0,117640.0,0.18916114]
[1753508344688,0.20644279,117650.0,117640.0,0.18916114]
[1753508344900,0.20644279,117650.0,117640.0,0.18066071]
[1753508345118,0.20644279,117650.0,117640.0,0.18916114]
[1753508345555,0.20644279,117650.0,117640.0,0.18066071]
[1753508345812,0.20644279,117650.0,117640.0,0.18916114]
[1753508346664,0.19794308,117650.0,117640.0,0.18916114]
[1753508346895,0.20644272,117650.0,117640.0,0.18916114]
[1753508347550,0.21494243,117650.0,117640.0,0.18916114]
[1753508348168,0.21494243,117650.0,117640.0,0.1976615]
[1753508348312,0.21494243,117650.0,117640.0,0.18916114]
[1753508348744,0.20644272,117650.0,117640.0,0.1976615]
[1753508348948,0.19794308,117650.0,117640.0,0.19766143]
[1753508349142,0.20644265,117650.0,117640.0,0.19766143]
[1753508349323,0.21494243,117650.0,117640.0,0.18916114]
[1753508349747,0.20644265,117650.0,117640.0,0.18916114]
[1753508350154,0.20644265,117650.0,117640.0,0.47314087]
[1753508350501,0.21494236,117650.0,117640.0,0.47314087]
[1753508350921,0.20644308,117650.0,117640.0,0.45613993]
[1753508351121,0.20644308,117650.0,117640.0,0.46464044]
[1753508351326,0.20644308,117650.0,117640.0,0.1721602]
[1753508351508,0.37643926,117650.0,117640.0,0.1721602]
[1753508353343,0.37643926,117650.0,117640.0,0.18066071]
[1753508353760,0.37643926,117650.0,117640.0,0.1721602]
[1753508354367,0.36793984,117650.0,117640.0,0.1721602]
[1753508358518,0.36793984,117650.0,117640.0,0.45613993]
[1753508358967,0.36793984,117650.0,117640.0,0.1721602]
[1753508359183,0.36793984,117650.0,117640.0,0.45613993]
[1753508359566,0.36793984,117650.0,117640.0,0.1721602]
[1753508359770,0.36793984,117650.0,117640.0,0.45613993]
[1753508359975,0.36793984,117650.0,117640.0,0.1721602]
[1753508363072,0.3594402,117650.0,117640.0,0.1721602]
[1753508367375,0.18944416,117650.0,117640.0,0.46464044]
[1753508368294,0.19794394,117650.0,117640.0,0.46464044]
[1753508368490,0.19794344,117650.0,117640.0,0.46464044]
[1753508368890,0.20644322,117650.0,117640.0,0.46464044]
[1753508369291,0.20644322,117650.0,117640.0,0.45613993]
[1753508369497,0.20644322,117650.0,117640.0,0.46464044]
[1753508370729,0.04424496,117650.0,117640.0,0.46464044]
[1753508370929,0.03448438,117650.0,117640.0,0.50619109]
[1753508371173,0.05148315,117650.0,117640.0,0.49769087]
[1753508371415,0.17968315,117650.0,117640.0,0.50619116]
[1753508371628,0.17118358,117650.0,117640.0,0.51469138]
[1753508371845,0.17118358,117650.0,117640.0,0.50619116]
[1753508372299,0.17118358,117650.0,117640.0,0.51469138]
[1753508373252,0.16268416,117650.0,117640.0,0.51469138]
[1753508373479,0.17118358,117650.0,117640.0,0.51469138]
[1753508373966,0.18818278,117650.0,117640.0,0.49769087]
[1753508374691,0.17968307,117650.0,117640.0,0.49769087]
[1753508374919,0.18818271,117650.0,117640.0,0.49769087]
[1753508375922,0.18818271,117650.0,117640.0,0.48919044]
[1753508376382,0.05998271,117650.0,117640.0,0.49769087]
[1753508376547,0.18822271,117650.0,117640.0,0.49769087]
[1753508377361,0.18822271,117650.0,117640.0,0.50619123]
[1753508377576,0.17972307,117650.0,117640.0,0.51469152]
[1753508377806,0.18822271,117650.0,117640.0,0.50619123]
[1753508377990,0.17972307,117650.0,117640.0,0.50619123]
[1753508378192,0.17972307,117650.0,117640.0,0.51469152]
[1753508378436,0.05148307,117650.0,117640.0,0.52319174]
[1753508378664,0.18822264,117650.0,117640.0,0.50619123]
[1753508378894,0.38459919,117650.0,117630.0,0.17326465]
[1753508379132,0.34409042,117650.0,117640.0,0.1700102]
[1753508379363,0.05062043,117640.0,117630.0,0.31522704]
[1753508379609,0.05062043,117640.0,117630.0,0.30672588]
[1753508379610,0.07722065,117640.0,117630.0,0.30672588]
[1753508379862,0.09422116,117640.0,117630.0,0.17002465]
[1753508380101,0.25573136,117640.0,117630.0,0.17002465]
[1753508380330,0.25573136,117640.0,117630.0,0.29822465]
[1753508380539,0.25573136,117640.0,117630.0,0.17002465]
[1753508380769,0.24723114,117640.0,117630.0,0.17102465]
[1753508381011,0.24723114,117640.0,117630.0,0.29922465]
[1753508382155,0.07722094,117640.0,117630.0,0.29922465]
[1753508382596,0.07722094,117640.0,117630.0,0.30022465]
[1753508383029,0.07722094,117640.0,117630.0,0.30872588]
[1753508383260,0.07722094,117640.0,117630.0,0.30022465]
[1753508383834,0.24723114,117640.0,117630.0,0.30022465]
[1753508384073,0.69868133,117640.0,117630.0,0.002]
[1753508385135,0.70722467,117640.0,117630.0,0.002]
[1753508385330,0.69868133,117640.0,117630.0,0.002]
[1753508389742,0.70735727,117640.0,117630.0,0.002]
[1753508390786,0.62436411,117640.0,117630.0,0.002]
[1753508396352,0.34038438,117640.0,117630.0,0.002]
[1753508396546,0.62436411,117640.0,117630.0,0.002]
[1753508405662,0.75256411,117640.0,117630.0,0.002]
[1753508415824,0.46858438,117640.0,117630.0,0.002]
[1753508416003,0.75256411,117640.0,117630.0,0.002]
[1753508419236,0.46858438,117640.0,117630.0,0.002]
[1753508419486,0.75256411,117640.0,117630.0,0.002]
[1753508420414,0.46858438,117640.0,117630.0,0.002]
[1753508420632,0.75256411,117640.0,117630.0,0.002]
[1753508421511,0.83704141,117640.0,117630.0,0.002]
[1753508427908,0.75256411,117640.0,117630.0,0.002]
[1753508437400,0.74388817,117640.0,117630.0,0.002]
[1753508439765,0.45990844,117640.0,117630.0,0.002]
[1753508439974,0.74388817,117640.0,117630.0,0.002]
[1753508446498,0.45990844,117640.0,117630.0,0.002]
[1753508446714,0.74388817,117640.0,117630.0,0.002]
[1753508446916,0.8233733,117640.0,117630.0,0.002]
[1753508447381,0.74388817,117640.0,117630.0,0.002]
[1753508448139,0.45990844,117640.0,117630.0,0.002]
[1753508448361,0.74388817,117640.0,117630.0,0.002]
[1753508448568,0.72788817,117640.0,117630.0,0.002]
[1753508451052,0.44390844,117640.0,117630.0,0.002]
[1753508451256,0.72788817,117640.0,117630.0,0.002]
[1753508451591,0.7829228,117640.0,117630.0,0.002]
[1753508452827,0.72788817,117640.0,117630.0,0.002]
[1753508456167,0.44390844,117640.0,117630.0,0.002]
[1753508456380,0.72788817,117640.0,117630.0,0.002]
[1753508458465,0.27148844,117640.0,117630.0,0.02904]
[1753508458666,0.68382817,117640.0,117630.0,0.06369]
[1753508459175,0.68382817,117640.0,117630.0,0.04799]
[1753508459433,0.70646817,117640.0,117630.0,0.04504]
[1753508459640,0.70854817,117640.0,117630.0,0.02904]
[1753508459845,0.70854817,117640.0,117630.0,0.00405]
[1753508460339,0.42762844,117640.0,117630.0,0.00405]
[1753508460749,0.71160817,117640.0,117630.0,0.00405]
[1753508461189,0.29412844,117640.0,117630.0,0.04504]
[1753508461394,0.39984844,117640.0,117630.0,0.06369]
[1753508461997,0.68382817,117640.0,117630.0,0.06369]
[1753508462212,0.39984844,117640.0,117630.0,0.06369]
[1753508462434,0.68382817,117640.0,117630.0,0.06369]
[1753508464289,0.70646817,117640.0,117630.0,0.04504]
[1753508464502,0.70854817,117640.0,117630.0,0.04504]
[1753508465315,0.70854817,117640.0,117630.0,0.02904]
[1753508465556,0.42456844,117640.0,117630.0,0.00405]
[1753508465794,0.70854817,117640.0,117630.0,0.00405]
[1753508466471,0.58018817,117640.0,117630.0,0.00405]
[1753508466661,0.70850817,117640.0,117630.0,0.00405]
[1753508467110,0.42452844,117640.0,117630.0,0.00405]
[1753508467323,0.70850817,117640.0,117630.0,0.00405]
[1753508468459,0.71156817,117640.0,117630.0,0.00405]
[1753508471755,0.71156817,117640.0,117630.0,0.002]
[1753508476981,0.79270681,117640.0,117630.0,0.002]
[1753508478967,0.80800681,117640.0,117630.0,0.002]
[1753508488192,0.44288844,117640.0,117630.0,0.002]
[1753508488665,0.72686817,117640.0,117630.0,0.002]
[1753508495615,0.71156817,117640.0,117630.0,0.002]
[1753508514614,0.72756817,117640.0,117630.0,0.002]
[1753508516032,0.59924817,117640.0,117630.0,0.002]
[1753508516525,0.72748817,117640.0,117630.0,0.002]
[1753508516752,0.77901666,117640.0,117630.0,0.002]
[1753508517144,0.72748817,117640.0,117630.0,0.002]
[1753508519245,0.44350844,117640.0,117630.0,0.002]
[1753508519456,0.72748817,117640.0,117630.0,0.002]
[1753508531872,0.74348817,117640.0,117630.0,0.002]
[1753508533876,0.72748817,117640.0,117630.0,0.002]
[1753508534346,0.81196547,117640.0,117630.0,0.002]
[1753508546371,0.82806547,117640.0,117630.0,0.002]
[1753508547449,0.82806547,117640.0,117630.0,0.001]
[1753508548226,0.19554408,117620.0,117610.0,0.22760157]
[1753508548421,0.59958237,117620.0,117610.0,0.05971]
[1753508549147,0.59958237,117620.0,117610.0,0.22976356]
[1753508549809,0.31560264,117620.0,117610.0,0.22976356]
[1753508550207,0.31560264,117620.0,117610.0,0.23176356]
[1753508550536,0.31560264,117620.0,117610.0,0.23376356]
[1753508555391,0.33847264,117620.0,117610.0,0.23376356]
[1753508557105,0.33847264,117620.0,117610.0,0.21796356]
[1753508559726,0.33847264,117620.0,117610.0,0.21501356]
[1753508560646,0.34058264,117620.0,117610.0,0.21501356]
[1753508561075,0.33208098,117620.0,117610.0,0.21501356]
[1753508563606,0.33208098,117620.0,117610.0,0.19131356]
[1753508563824,0.33208098,117620.0,117610.0,0.17621356]
[1753508566914,0.33515098,117620.0,117610.0,0.17621356]
[1753508567120,0.61913071,117620.0,117610.0,0.17621356]
[1753508567322,0.33515098,117620.0,117610.0,0.17621356]
[1753508568910,0.63543071,117620.0,117610.0,0.004]
[1753508574998,0.35145098,117620.0,117610.0,0.004]
[1753508575355,0.63543071,117620.0,117610.0,0.004]
[1753508575564,0.64401887,117620.0,117610.0,0.004]
[1753508578259,0.65931887,117620.0,117610.0,0.004]
[1753508580236,0.37533914,117620.0,117610.0,0.004]
[1753508580448,0.65931887,117620.0,117610.0,0.004]
[1753508581228,0.37533914,117620.0,117610.0,0.004]
[1753508581396,0.65931887,117620.0,117610.0,0.004]
[1753508588154,0.64401887,117620.0,117610.0,0.004]
[1753508597466,0.36003914,117620.0,117610.0,0.004]
[1753508597687,0.64401887,117620.0,117610.0,0.004]
[1753508601609,0.36003914,117620.0,117610.0,0.004]
[1753508601838,0.64401887,117620.0,117610.0,0.004]
[1753508609816,0.74459617,117620.0,117610.0,0.004]
[1753508611966,0.79084563,117620.0,117610.0,0.004]
[1753508612614,0.74459617,117620.0,117610.0,0.004]
[1753508615543,0.76204519,117620.0,117610.0,0.004]
[1753508621687,0.47806546,117620.0,117610.0,0.004]
[1753508621899,0.76204519,117620.0,117610.0,0.004]
[1753508622769,0.47806546,117620.0,117610.0,0.004]
[1753508622990,0.76204519,117620.0,117610.0,0.004]
[1753508623211,0.82940974,117620.0,117610.0,0.004]
[1753508632396,0.82082158,117620.0,117610.0,0.004]
[1753508633491,0.84636358,117620.0,117610.0,0.004]
[1753508637560,0.85503919,117620.0,117610.0,0.004]
[1753508640226,0.57105946,117620.0,117610.0,0.004]
[1753508640433,0.85503919,117620.0,117610.0,0.004]
[1753508653241,0.82949719,117620.0,117610.0,0.004]
[1753508653465,0.85504019,117620.0,117610.0,0.004]
[1753508665851,0.85480019,117620.0,117610.0,0.004]
[1753508666066,0.82925719,117620.0,117610.0,0.004]
[1753508668917,0.54527746,117620.0,117610.0,0.004]
[1753508669164,0.82925719,117620.0,117610.0,0.004]
[1753508674926,0.54527746,117620.0,117610.0,0.004]
[1753508675133,0.82925719,117620.0,117610.0,0.004]
[1753508688070,0.54527746,117620.0,117610.0,0.004]
[1753508688303,0.82925719,117620.0,117610.0,0.004]
[1753508688547,0.81315719,117620.0,117610.0,0.004]
[1753508697488,0.80448158,117620.0,117610.0,0.004]
[1753508700979,0.81308826,117620.0,117610.0,0.004]
[1753508704026,0.52910853,117620.0,117610.0,0.004]
[1753508704245,0.81308826,117620.0,117610.0,0.004]
[1753508708342,1.11308826,117620.0,117610.0,0.004]
[1753508709727,1.09678826,117620.0,117610.0,0.004]
[1753508709947,1.09678826,117620.0,117610.0,0.00611]
[1753508715410,1.09678826,117620.0,117610.0,0.004]
[1753508718122,0.74544398,117620.0,117610.0,0.004]
[1753508718348,1.02942371,117620.0,117610.0,0.004]
[1753508722039,0.74544398,117620.0,117610.0,0.004]
[1753508722282,1.02942371,117620.0,117610.0,0.004]
[1753508735593,1.04542371,117620.0,117610.0,0.004]
[1753508735815,1.12990101,117620.0,117610.0,0.004]
[1753508741806,1.14650101,117620.0,117610.0,0.004]
[1753508744766,1.13799913,117620.0,117610.0,0.004]
[1753508745217,1.05352183,117620.0,117610.0,0.004]
[1753508747621,1.03692183,117620.0,117610.0,0.004]
[1753508752009,0.7529421,117620.0,117610.0,0.004]
[1753508752234,1.03692183,117620.0,117610.0,0.004]
[1753508752460,0.7529421,117620.0,117610.0,0.004]
[1753508752743,1.03692183,117620.0,117610.0,0.004]
[1753508752946,1.10099284,117620.0,117610.0,0.004]
[1753508753411,1.12653484,117620.0,117610.0,0.004]
[1753508756879,0.84255511,117620.0,117610.0,0.004]
[1753508757086,1.12653484,117620.0,117610.0,0.004]
[1753508760150,0.84255511,117620.0,117610.0,0.004]
[1753508760368,1.12653484,117620.0,117610.0,0.004]
[1753508761222,1.06246383,117620.0,117610.0,0.004]
[1753508762291,1.05385715,117620.0,117610.0,0.004]
[1753508763365,1.06945715,117620.0,117610.0,0.004]
[1753508763582,1.05385715,117620.0,117610.0,0.004]
[1753508767108,0.76987742,117620.0,117610.0,0.004]
[1753508767330,1.1466438,117620.0,117610.0,0.004]
[1753508771915,1.1466038,117620.0,117610.0,0.004]
[1753508782031,1.4706038,117620.0,117610.0,0.004]
[1753508782245,1.4867038,117620.0,117610.0,0.004]
[1753508786226,1.20272407,117620.0,117610.0,0.004]
[1753508786441,1.4867038,117620.0,117610.0,0.004]
[1753508793155,1.5029038,117620.0,117610.0,0.004]
[1753508794000,1.21892407,117620.0,117610.0,0.004]
[1753508794201,1.5029038,117620.0,117610.0,0.004]
[1753508798998,1.50734573,117620.0,117610.0,0.004]
[1753508799776,1.50734573,117620.0,117610.0,0.002]
[1753508800174,1.50834573,117620.0,117610.0,0.002]
[1753508800428,0.21140511,117610.0,117600.0,0.067929]
[1753508800668,0.82078944,117610.0,117600.0,0.067929]
[1753508801063,0.84633444,117610.0,117600.0,0.067929]
[1753508801711,0.84633444,117610.0,117600.0,0.06797749]
[1753508801922,0.84833444,117610.0,117600.0,0.06797749]
[1753508803503,1.48731417,117610.0,117600.0,0.06797749]
[1753508803710,1.20333444,117610.0,117600.0,0.06797749]
[1753508819770,0.91935471,117610.0,117600.0,0.06797749]
[1753508819979,1.20333444,117610.0,117600.0,0.06797749]
[1753508824602,1.48761417,117610.0,117600.0,0.06797749]
[1753508824824,1.20363444,117610.0,117600.0,0.06797749]
[1753508832997,1.48761417,117610.0,117600.0,0.06797749]
[1753508844387,1.93091417,117610.0,117600.0,0.06797749]
[1753508851864,2.13515417,117610.0,117600.0,0.06797749]
[1753508862972,2.14113356,117610.0,117600.0,0.06797749]
[1753508863188,2.12583356,117610.0,117600.0,0.06797749]
[1753508864003,1.5578741,117610.0,117600.0,0.06797749]
[1753508864213,2.12583356,117610.0,117600.0,0.06797749]
[1753508864904,2.12583411,117610.0,117600.0,0.06797749]
[1753508865301,2.14178114,117610.0,117600.0,0.06797749]
[1753508865542,2.12583411,117610.0,117600.0,0.06797749]
[1753508868358,2.14178221,117610.0,117600.0,0.06797749]
[1753508869393,2.12583411,117610.0,117600.0,0.06797749]
[1753508869622,2.1417823,117610.0,117600.0,0.06797749]
[1753508870720,2.19286298,117610.0,117600.0,0.06797749]
[1753508870939,2.14170298,117610.0,117600.0,0.06797749]
[1753508871812,2.11977417,117610.0,117600.0,0.06797749]
[1753508873138,2.13617417,117610.0,117600.0,0.06797749]
[1753508873356,2.15212239,117610.0,117600.0,0.06797749]
[1753508873580,2.158103,117610.0,117600.0,0.06797749]
[1753508874615,2.158063,117610.0,117600.0,0.06797749]
[1753508875070,2.15806302,117610.0,117600.0,0.06797749]
[1753508876612,2.15208239,117610.0,117600.0,0.06797749]
[1753508876809,2.15806306,117610.0,117600.0,0.06797749]
[1753508877442,1.82534306,117610.0,117600.0,0.06797749]
[1753508877638,1.5901036,117610.0,117600.0,0.06797749]
[1753508877778,2.15806306,117610.0,117600.0,0.06797749]
[1753508878644,2.15810306,117610.0,117600.0,0.06797749]
[1753508879048,2.14170306,117610.0,117600.0,0.06797749]
[1753508880634,2.14170382,117610.0,117600.0,0.06797749]
[1753508882799,2.14170426,117610.0,117600.0,0.06797749]
[1753508883215,2.15730426,117610.0,117600.0,0.06797749]
[1753508890709,2.15730426,117610.0,117600.0,0.06789478]
[1753508893231,2.14170426,117610.0,117600.0,0.06789478]
[1753508896433,2.14170455,117610.0,117600.0,0.06789478]
[1753508897041,2.1257551,117610.0,117600.0,0.06789478]
[1753508897403,2.14170455,117610.0,117600.0,0.06789478]
[1753508900059,2.14170454,117610.0,117600.0,0.06789478]
[1753508904778,2.15700454,117610.0,117600.0,0.06789478]
[1753508905924,2.15700434,117610.0,117600.0,0.06789478]
[1753508907338,2.1410551,117610.0,117600.0,0.06789478]
[1753508907562,2.1570032,117610.0,117600.0,0.06789478]
[1753508911107,2.1417032,117610.0,117600.0,0.06789478]
[1753508916151,2.1577032,117610.0,117600.0,0.06789478]
[1753508916628,2.1576232,117610.0,117600.0,0.06789478]
[1753508917717,2.15762225,117610.0,117600.0,0.06789478]
[1753508918383,1.82494225,117610.0,117600.0,0.06789478]
[1753508918612,2.15762225,117610.0,117600.0,0.06789478]
[1753508921377,1.71432225,117610.0,117600.0,0.06789478]
[1753508922076,1.72229432,117610.0,117600.0,0.06789478]
[1753508923024,1.71432225,117610.0,117600.0,0.06789478]
[1753508924141,1.722294,117610.0,117600.0,0.06789478]
[1753508924603,1.389614,117610.0,117600.0,0.06789478]
[1753508924809,1.722294,117610.0,117600.0,0.06789478]
[1753508925448,1.38164225,117610.0,117600.0,0.06789478]
[1753508925703,1.71432225,117610.0,117600.0,0.06789478]
[1753508926344,1.76432225,117610.0,117600.0,0.06789478]
[1753508926554,1.77229381,117610.0,117600.0,0.06789478]